fUSD/lending_fUSD_20250107
["ID","MTS","AMOUNT","RATE_DAILY","PERIOD"]
[348073332,1736293839983,-500.0,9.55e-05,2]
[348073333,1736293839993,-500.0,9.55e-05,2]
[348073334,1736293840002,-500.0,9.55e-05,2]
[348073335,1736293840011,-500.0,9.55e-05,2]
[348073336,1736293840021,-607.55,9.55e-05,2]
[348073337,1736293840030,-500.0,9.55e-05,2]
[348073338,1736293840039,-500.0,9.55e-05,2]
[348073339,1736293840049,-500.0,9.55e-05,2]
[348073340,1736293840058,-500.0,9.55e-05,2]
[348073341,1736293840067,-724.25,9.55e-05,2]
[348073342,1736293840076,-610.86,9.55e-05,2]
[348073343,1736293840085,-500.0,9.55e-05,2]
[348073344,1736293840095,-671.25,9.55e-05,2]
[348073345,1736293840105,-285.52025995,9.55e-05,2]
[348073346,1736293840114,-735.0,9.55e-05,2]
[348073347,1736293840123,-500.0,9.55e-05,2]
[348073348,1736293840132,-500.0,9.55e-05,2]
[348073349,1736293840142,-500.0,9.55e-05,2]
[348073350,1736293840151,-500.0,9.55e-05,2]
[348073351,1736293840160,-500.0,9.55e-05,2]
[348073352,1736293840170,-690.58,9.55e-05,2]
[348073353,1736293840179,-500.0,9.55e-05,2]
[348073354,1736293840189,-500.0,9.55e-05,2]
[348073355,1736293840198,-500.0,9.55e-05,2]
[348073356,1736293840207,-530.3,9.55e-05,2]
[348073358,1736293840216,-500.0,9.55e-05,2]
[348073360,1736293840225,-500.0,9.55e-05,2]
[348073362,1736293840235,-500.0,9.55e-05,2]
[348073364,1736293840244,-597.1,9.55e-05,2]
[348073366,1736293840253,-187.16988675,9.55e-05,2]
[348073368,1736293840262,-500.0,9.55e-05,2]
[348073370,1736293840271,-500.0,9.55e-05,2]
[348073372,1736293840281,-500.0,9.55e-05,2]
[348073374,1736293840291,-500.0,9.55e-05,2]
[348073376,1736293840301,-500.0,9.55e-05,2]
[348073378,1736293840311,-176.02578641,9.55e-05,2]
[348073380,1736293840320,-500.0,9.55e-05,2]
[348073382,1736293840330,-1181.84,9.55e-05,2]
[348073384,1736293840339,-500.0,9.55e-05,2]
[348073386,1736293840348,-500.0,9.55e-05,2]
[348073388,1736293840357,-500.0,9.55e-05,2]
[348073389,1736293840367,-1750.83,9.55e-05,2]
[348073391,1736293840376,-500.0,9.55e-05,2]
[348073393,1736293840385,-823.79,9.55e-05,2]
[348073395,1736293840395,-500.0,9.55e-05,2]
[348073398,1736293840411,-500.0,9.55e-05,2]
[348073399,1736293840420,-213.29921739,9.55e-05,2]
[348073401,1736293840430,-500.0,9.55e-05,2]
[348073403,1736293840440,-500.0,9.55e-05,2]
[348073405,1736293840450,-1984.69,9.55e-05,2]
[348073407,1736293840459,-708.58,9.55e-05,2]
[348073409,1736293840468,-500.0,9.55e-05,2]
[348073411,1736293840477,-500.0,9.55e-05,2]
[348073413,1736293840486,-500.0,9.55e-05,2]
[348073415,1736293840495,-500.0,9.55e-05,2]
[348073417,1736293840504,-500.0,9.55e-05,2]
[348073419,1736293840513,-1402.78,9.55e-05,2]
[348073421,1736293840522,-914.79,9.55e-05,2]
[348073423,1736293840531,-500.0,9.55e-05,2]
[348073425,1736293840541,-500.0,9.55e-05,2]
[348073427,1736293840550,-500.0,9.55e-05,2]
[348073428,1736293840559,-500.0,9.55e-05,2]
[348073430,1736293840568,-500.0,9.55e-05,2]
[348073432,1736293840578,-500.0,9.55e-05,2]
[348073434,1736293840587,-500.0,9.55e-05,2]
[348073436,1736293840596,-500.0,9.55e-05,2]
[348073438,1736293840606,-522.48004108,9.55e-05,2]
[348073440,1736293840615,-500.0,9.55e-05,2]
[348073442,1736293840625,-719.13,9.55e-05,2]
[348073444,1736293840634,-500.0,9.55e-05,2]
[348073446,1736293840644,-500.0,9.55e-05,2]
[348073448,1736293840654,-500.0,9.55e-05,2]
[348073449,1736293840663,-500.0,9.55e-05,2]
[348073450,1736293840672,-500.0,9.55e-05,2]
[348073451,1736293840683,-690.01,9.55e-05,2]
[348073452,1736293840692,-500.0,9.55e-05,2]
[348073453,1736293840702,-500.0,9.55e-05,2]
[348073454,1736293840711,-1186.64,9.55e-05,2]
[348073455,1736293840720,-500.0,9.55e-05,2]
[348073456,1736293840729,-500.0,9.55e-05,2]
[348073457,1736293840738,-1812.3,9.55e-05,2]
[348073458,1736293840748,-500.0,9.55e-05,2]
[348073459,1736293840757,-500.0,9.55e-05,2]
[348073460,1736293840767,-500.0,9.55e-05,2]
[348073461,1736293840776,-795.99,9.55e-05,2]
[348073462,1736293840786,-1000.0,9.55e-05,2]
[348073463,1736293840795,-500.0,9.55e-05,2]
[348073464,1736293840805,-799.53,9.55e-05,2]
[348073465,1736293840814,-566.68,9.55e-05,2]
[348073466,1736293840824,-500.0,9.55e-05,2]
[348073467,1736293840833,-500.0,9.55e-05,2]
[348073468,1736293840842,-500.0,9.55e-05,2]
[348073469,1736293840852,-500.0,9.55e-05,2]
[348073470,1736293840861,-600.79,9.55e-05,2]
[348073471,1736293840870,-500.0,9.55e-05,2]
[348073472,1736293840879,-1618.63,9.55e-05,2]
[348073473,1736293840889,-500.0,9.55e-05,2]
[348073474,1736293840898,-178.55,9.571e-05,2]
[348073475,1736293840909,-500.0,9.625e-05,2]
[348073476,1736293840918,-500.0,9.625e-05,2]
[348073477,1736293840928,-500.0,9.625e-05,2]
[348073478,1736293840938,-500.0,9.625e-05,2]
[348073479,1736293840947,-500.0,9.625e-05,2]
[348073480,1736293840957,-503.44415425,9.625e-05,2]
[348073481,1736293840967,-500.0,9.625e-05,2]
[348073482,1736293840976,-500.0,9.625e-05,2]
[348073483,1736293840985,-500.0,9.625e-05,2]
[348073484,1736293840995,-500.0,9.625e-05,2]
[348073485,1736293841004,-500.0,9.625e-05,2]
[348073486,1736293841013,-861.1,9.625e-05,2]
[348073487,1736293841023,-500.0,9.625e-05,2]
[348073488,1736293841032,-1216.46,9.625e-05,2]
[348073489,1736293841041,-3804.32,9.625e-05,2]
[348073490,1736293841050,-500.0,9.625e-05,2]
[348073491,1736293841059,-500.0,9.625e-05,2]
[348073492,1736293841068,-500.0,9.625e-05,2]
[348073493,1736293841077,-745.41,9.625e-05,2]
[348073494,1736293841086,-689.56,9.625e-05,2]
[348073495,1736293841095,-1125.14,9.625e-05,2]
[348073496,1736293841104,-500.0,9.625e-05,2]
[348073497,1736293841113,-500.0,9.625e-05,2]
[348073498,1736293841123,-2044.25,9.625e-05,2]
[348073499,1736293841132,-500.0,9.625e-05,2]
[348073500,1736293841141,-879.84,9.625e-05,2]
[348073501,1736293841152,-452.84,9.625e-05,2]
[348073502,1736293841162,-500.0,9.625e-05,2]
[348073503,1736293841172,-648.33,9.625e-05,2]
[348073504,1736293841181,-1209.31,9.625e-05,2]
[348073505,1736293841191,-883.01,9.625e-05,2]
[348073506,1736293841201,-500.0,9.625e-05,2]
[348073507,1736293841210,-468.85502308,9.626e-05,2]
[348073508,1736293841220,-501.45,9.626e-05,2]
[348073509,1736293841230,-824.81,9.626e-05,2]
[348073510,1736293841240,-1519.87,9.626e-05,2]
[348073511,1736293841250,-500.0,9.71e-05,2]
[348073512,1736293841261,-500.0,9.71e-05,2]
[348073513,1736293841271,-673.69,9.71e-05,2]
[348073514,1736293841281,-779.03,9.71e-05,2]
[348073515,1736293841291,-1551.77,9.71e-05,2]
[348073516,1736293841300,-1088.09,9.71e-05,2]
[348073517,1736293841309,-620.746265,9.71e-05,2]
[348073518,1736293841319,-2000.4,9.71e-05,2]
[348073519,1736293841328,-597.759592,9.71e-05,2]
[348073520,1736293841337,-500.0,9.71e-05,2]
[348073521,1736293841347,-500.0,9.71e-05,2]
[348073522,1736293841357,-500.0,9.71e-05,2]
[348073523,1736293841366,-500.0,9.71e-05,2]
[348073524,1736293841376,-500.0,9.71e-05,2]
[348073525,1736293841387,-1484.85,9.71e-05,2]
[348073526,1736293841398,-550.3,9.727e-05,2]
[348073527,1736293841413,-545.33,9.728e-05,2]
[348073528,1736293841423,-1358.3,9.728e-05,2]
[348073529,1736293841432,-500.0,9.823e-05,2]
[348073530,1736293841446,-500.0,9.823e-05,2]
[348073531,1736293841457,-500.0,9.823e-05,2]
[348073532,1736293841468,-500.0,9.823e-05,2]
[348073533,1736293841480,-500.0,9.823e-05,2]
[348073534,1736293841491,-500.0,9.823e-05,2]
[348073535,1736293841501,-500.0,9.823e-05,2]
[348073536,1736293841512,-500.0,9.823e-05,2]
[348073537,1736293841521,-500.0,9.823e-05,2]
[348073538,1736293841531,-500.0,9.823e-05,2]
[348073539,1736293841541,-500.0,9.823e-05,2]
[348073540,1736293841551,-500.0,9.823e-05,2]
[348073541,1736293841561,-500.0,9.823e-05,2]
[348073542,1736293841570,-500.0,9.823e-05,2]
[348073543,1736293841580,-500.0,9.823e-05,2]
[348073544,1736293841590,-500.0,9.823e-05,2]
[348073545,1736293841599,-500.0,9.823e-05,2]
[348073546,1736293841609,-500.0,9.823e-05,2]
[348073547,1736293841619,-500.0,9.823e-05,2]
[348073548,1736293841629,-500.0,9.823e-05,2]
[348073549,1736293841639,-500.0,9.823e-05,2]
[348073550,1736293841649,-500.0,9.823e-05,2]
[348073551,1736293841660,-500.0,9.823e-05,2]
[348073552,1736293841670,-500.0,9.823e-05,2]
[348073553,1736293841680,-500.0,9.823e-05,2]
[348073554,1736293841690,-500.0,9.823e-05,2]
[348073555,1736293841700,-500.0,9.823e-05,2]
[348073556,1736293841710,-1049.77,9.823e-05,2]
[348073557,1736293841720,-500.0,9.823e-05,2]
[348073558,1736293841729,-308.57408979,9.823e-05,2]
[348073559,1736293841739,-500.0,9.823e-05,2]
[348073560,1736293841748,-500.0,9.823e-05,2]
[348073561,1736293841758,-500.0,9.823e-05,2]
[348073562,1736293841767,-500.0,9.823e-05,2]
[348073563,1736293841777,-500.0,9.823e-05,2]
[348073564,1736293841787,-569.84678871,9.823e-05,2]
[348073565,1736293841796,-500.0,9.823e-05,2]
[348073566,1736293841806,-500.0,9.823e-05,2]
[348073567,1736293841815,-500.0,9.823e-05,2]
[348073568,1736293841827,-500.0,9.823e-05,2]
[348073569,1736293841838,-500.0,9.823e-05,2]
[348073570,1736293841847,-500.0,9.823e-05,2]
[348073571,1736293841856,-500.0,9.823e-05,2]
[348073572,1736293841866,-614.3,9.823e-05,2]
[348073573,1736293841876,-500.0,9.823e-05,2]
[348073574,1736293841886,-500.0,9.823e-05,2]
[348073575,1736293841895,-753.89,9.823e-05,2]
[348073576,1736293841905,-500.0,9.823e-05,2]
[348073577,1736293841915,-582.41,9.823e-05,2]
[348073578,1736293841924,-500.0,9.823e-05,2]
[348073579,1736293841933,-500.0,9.823e-05,2]
[348073580,1736293841943,-500.0,9.823e-05,2]
[348073581,1736293841952,-500.0,9.823e-05,2]
[348073582,1736293841961,-500.0,9.823e-05,2]
[348073583,1736293841971,-500.0,9.823e-05,2]
[348073584,1736293841980,-769.84,9.823e-05,2]
[348073585,1736293841990,-500.0,9.823e-05,2]
[348073586,1736293841999,-500.0,9.823e-05,2]
[348073587,1736293842011,-500.0,9.823e-05,2]
[348073588,1736293842021,-500.0,9.823e-05,2]
[348073589,1736293842030,-1241.15,9.823e-05,2]
[348073590,1736293842040,-500.0,9.823e-05,2]
[348073591,1736293842049,-699.51,9.823e-05,2]
[348073592,1736293842059,-533.39,9.823e-05,2]
[348073593,1736293842068,-500.0,9.823e-05,2]
[348073594,1736293842078,-500.0,9.823e-05,2]
[348073595,1736293842087,-500.0,9.823e-05,2]
[348073596,1736293842096,-500.0,9.823e-05,2]
[348073597,1736293842106,-670.07,9.823e-05,2]
[348073598,1736293842115,-1516.01,9.823e-05,2]
[348073599,1736293842124,-500.0,9.823e-05,2]
[348073600,1736293842133,-500.0,9.823e-05,2]
[348073601,1736293842145,-500.0,9.823e-05,2]
[348073602,1736293842155,-500.0,9.823e-05,2]
[348073603,1736293842164,-1569.01,9.823e-05,2]
[348073604,1736293842173,-503.82,9.823e-05,2]
[348073605,1736293842182,-500.0,9.823e-05,2]
[348073606,1736293842192,-500.0,9.823e-05,2]
[348073607,1736293842201,-1908.97,9.823e-05,2]
[348073608,1736293842210,-500.0,9.823e-05,2]
[348073609,1736293842219,-500.0,9.823e-05,2]
[348073610,1736293842229,-500.0,9.823e-05,2]
[348073611,1736293842238,-1052.81,9.823e-05,2]
[348073612,1736293842248,-2068.03,9.823e-05,2]
[348073613,1736293842257,-584.17111713,9.823e-05,2]
[348073614,1736293842267,-662.64,9.823e-05,2]
[348073615,1736293842276,-500.0,9.823e-05,2]
[348073616,1736293842286,-500.0,9.823e-05,2]
[348073617,1736293842295,-1860.77,9.823e-05,2]
[348073618,1736293842304,-936.69,9.823e-05,2]
[348073619,1736293842313,-500.0,9.823e-05,2]
[348073620,1736293842323,-500.0,9.823e-05,2]
[348073621,1736293842332,-500.0,9.823e-05,2]
[348073622,1736293842342,-500.0,9.823e-05,2]
[348073623,1736293842351,-500.0,9.823e-05,2]
[348073624,1736293842361,-500.0,9.823e-05,2]
[348073625,1736293842370,-500.0,9.823e-05,2]
[348073626,1736293842379,-2152.19,9.823e-05,2]
[348073627,1736293842389,-500.0,9.823e-05,2]
[348073628,1736293842400,-500.0,9.823e-05,2]
[348073629,1736293842413,-500.0,9.823e-05,2]
[348073630,1736293842422,-1369.51,9.823e-05,2]
[348073631,1736293842432,-500.0,9.823e-05,2]
[348073632,1736293842442,-500.0,9.823e-05,2]
[348073633,1736293842452,-416.53316711,9.823e-05,2]
[348073634,1736293842462,-500.0,9.823e-05,2]
[348073635,1736293842471,-500.0,9.823e-05,2]
[348073636,1736293842482,-829.55,9.823e-05,2]
[348073637,1736293842492,-789.34,9.823e-05,2]
[348073638,1736293842501,-500.0,9.823e-05,2]
[348073639,1736293842511,-500.0,9.823e-05,2]
[348073640,1736293842520,-813.16,9.823e-05,2]
[348073641,1736293842530,-500.0,9.823e-05,2]
[348073642,1736293842539,-500.0,9.823e-05,2]
[348073643,1736293842549,-500.0,9.823e-05,2]
[348073644,1736293842558,-500.0,9.823e-05,2]
[348073645,1736293842567,-500.0,9.823e-05,2]
[348073646,1736293842576,-687.51,9.823e-05,2]
[348073647,1736293842586,-500.0,9.823e-05,2]
[348073648,1736293842595,-500.0,9.824e-05,2]
[348073649,1736293842605,-500.0,9.824e-05,2]
[348073650,1736293842614,-642.04,9.824e-05,2]
[348073651,1736293842623,-500.0,9.824e-05,2]
[348073652,1736293842634,-500.0,9.824e-05,2]
[348073653,1736293842643,-500.0,9.824e-05,2]
[348073654,1736293842654,-500.0,9.824e-05,2]
[348073655,1736293842664,-500.0,9.824e-05,2]
[348073656,1736293842673,-500.0,9.824e-05,2]
[348073657,1736293842684,-500.0,9.824e-05,2]
[348073658,1736293842694,-500.0,9.824e-05,2]
[348073659,1736293842704,-500.0,9.824e-05,2]
[348073660,1736293842713,-500.0,9.824e-05,2]
[348073661,1736293842723,-644.13,9.824e-05,2]
[348073662,1736293842733,-500.0,9.824e-05,2]
[348073663,1736293842742,-899.98,9.824e-05,2]
[348073664,1736293842751,-648.46,9.824e-05,2]
[348073665,1736293842761,-500.0,9.824e-05,2]
[348073666,1736293842770,-838.45,9.824e-05,2]
[348073667,1736293842780,-609.48,9.824e-05,2]
[348073668,1736293842789,-500.0,9.824e-05,2]
[348073669,1736293842799,-1514.33,9.824e-05,2]
[348073670,1736293842808,-515.09,9.824e-05,2]
[348073671,1736293842818,-500.0,9.824e-05,2]
[348073672,1736293842828,-500.0,9.824e-05,2]
[348073673,1736293842838,-500.0,9.824e-05,2]
[348073674,1736293842847,-3662.18,9.824e-05,2]
[348073675,1736293842857,-500.0,9.824e-05,2]
[348073676,1736293842867,-500.0,9.824e-05,2]
[348073677,1736293842877,-500.0,9.824e-05,2]
[348073678,1736293842886,-500.0,9.824e-05,2]
[348073679,1736293843062,-500.0,9.824e-05,2]
[348073680,1736293843072,-500.0,9.824e-05,2]
[348073681,1736293843082,-500.0,9.824e-05,2]
[348073682,1736293843093,-500.0,9.824e-05,2]
[348073683,1736293843103,-500.0,9.824e-05,2]
[348073684,1736293843113,-500.0,9.824e-05,2]
[348073685,1736293843123,-500.0,9.824e-05,2]
[348073686,1736293843132,-500.0,9.824e-05,2]
[348073687,1736293843142,-500.0,9.824e-05,2]
[348073688,1736293843152,-500.0,9.824e-05,2]
[348073689,1736293843161,-500.0,9.824e-05,2]
[348073690,1736293843171,-500.0,9.824e-05,2]
[348073691,1736293843181,-724.25,9.824e-05,2]
[348073692,1736293843191,-610.86,9.824e-05,2]
[348073693,1736293843201,-500.0,9.824e-05,2]
[348073694,1736293843211,-671.25,9.824e-05,2]
[348073695,1736293843222,-735.0,9.824e-05,2]
[348073696,1736293843232,-500.0,9.824e-05,2]
[348073697,1736293843242,-500.0,9.824e-05,2]
[348073698,1736293843252,-500.0,9.824e-05,2]
[348073699,1736293843262,-500.0,9.824e-05,2]
[348073700,1736293843272,-690.58,9.824e-05,2]
[348073701,1736293843282,-500.0,9.824e-05,2]
[348073702,1736293843291,-500.0,9.824e-05,2]
[348073703,1736293843301,-500.0,9.824e-05,2]
[348073704,1736293843311,-530.3,9.824e-05,2]
[348073705,1736293843321,-500.0,9.824e-05,2]
[348073706,1736293843330,-500.0,9.824e-05,2]
[348073707,1736293843340,-597.1,9.824e-05,2]
[348073708,1736293843349,-500.0,9.824e-05,2]
[348073709,1736293843359,-500.0,9.824e-05,2]
[348073710,1736293843368,-500.0,9.824e-05,2]
[348073711,1736293843378,-500.0,9.824e-05,2]
[348073712,1736293843387,-1181.84,9.824e-05,2]
[348073713,1736293843398,-500.0,9.824e-05,2]
[348073714,1736293843411,-500.0,9.824e-05,2]
[348073715,1736293843420,-1750.83,9.824e-05,2]
[348073716,1736293843429,-500.0,9.824e-05,2]
[348073717,1736293843440,-823.79,9.824e-05,2]
[348073718,1736293843450,-500.0,9.824e-05,2]
[348073719,1736293843460,-500.0,9.824e-05,2]
[348073720,1736293843471,-500.0,9.824e-05,2]
[348073721,1736293843480,-500.0,9.824e-05,2]
[348073722,1736293843490,-1984.69,9.824e-05,2]
[348073723,1736293843499,-708.58,9.824e-05,2]
[348073724,1736293843508,-500.0,9.824e-05,2]
[348073725,1736293843518,-500.0,9.824e-05,2]
[348073726,1736293843527,-500.0,9.824e-05,2]
[348073727,1736293843537,-1402.78,9.824e-05,2]
[348073728,1736293843547,-914.79,9.824e-05,2]
[348073729,1736293843557,-500.0,9.824e-05,2]
[348073730,1736293843566,-500.0,9.824e-05,2]
[348073731,1736293843575,-225.25,9.824e-05,2]
[348073732,1736293843585,-500.0,9.824e-05,2]
[348073733,1736293843595,-360.53558327,9.824e-05,2]
[348073734,1736293843605,-500.0,9.824e-05,2]
[348073735,1736293843615,-719.13,9.824e-05,2]
[348073736,1736293843624,-500.0,9.824e-05,2]
[348073737,1736293843634,-500.0,9.824e-05,2]
[348073738,1736293843644,-500.0,9.824e-05,2]
[348073739,1736293843654,-500.0,9.824e-05,2]
[348073740,1736293843664,-690.01,9.824e-05,2]
[348073741,1736293843674,-500.0,9.824e-05,2]
[348073742,1736293843683,-500.0,9.824e-05,2]
[348073743,1736293843693,-1186.64,9.824e-05,2]
[348073744,1736293843703,-500.0,9.824e-05,2]
[348073745,1736293843712,-500.0,9.824e-05,2]
[348073746,1736293843722,-1812.3,9.824e-05,2]
[348073747,1736293843732,-500.0,9.824e-05,2]
[348073748,1736293843741,-500.0,9.824e-05,2]
[348073749,1736293843751,-500.0,9.824e-05,2]
[348073750,1736293843760,-795.99,9.824e-05,2]
[348073751,1736293843770,-1000.0,9.824e-05,2]
[348073752,1736293843779,-500.0,9.824e-05,2]
[348073753,1736293843788,-799.53,9.824e-05,2]
[348073754,1736293843798,-566.68,9.824e-05,2]
[348073755,1736293843807,-500.0,9.824e-05,2]
[348073756,1736293843817,-500.0,9.824e-05,2]
[348073757,1736293843827,-500.0,9.824e-05,2]
[348073758,1736293843837,-500.0,9.824e-05,2]
[348073759,1736293843847,-500.0,9.824e-05,2]
[348073760,1736293843857,-1618.63,9.824e-05,2]
[348073761,1736293843866,-500.0,9.824e-05,2]
[348073762,1736293843876,-500.0,9.899e-05,2]
[348073763,1736293843886,-500.0,9.899e-05,2]
[348073764,1736293843895,-500.0,9.899e-05,2]
[348073765,1736293843906,-500.0,9.899e-05,2]
[348073766,1736293843916,-500.0,9.899e-05,2]
[348073767,1736293843925,-500.0,9.899e-05,2]
[348073768,1736293843935,-861.1,9.899e-05,2]
[348073769,1736293843944,-500.0,9.899e-05,2]
[348073770,1736293843954,-1216.46,9.899e-05,2]
[348073771,1736293843963,-3804.32,9.899e-05,2]
[348073772,1736293843972,-500.0,9.899e-05,2]
[348073773,1736293843981,-500.0,9.899e-05,2]
[348073774,1736293843991,-500.0,9.899e-05,2]
[348073775,1736293844000,-745.41,9.899e-05,2]
[348073776,1736293844010,-689.56,9.899e-05,2]
[348073777,1736293844019,-1125.14,9.899e-05,2]
[348073778,1736293844028,-500.0,9.899e-05,2]
[348073779,1736293844038,-500.0,9.899e-05,2]
[348073780,1736293844048,-2044.25,9.899e-05,2]
[348073781,1736293844057,-500.0,9.899e-05,2]
[348073782,1736293844067,-879.84,9.899e-05,2]
[348073783,1736293844076,-583.71227079,9.899e-05,2]
[348073784,1736293844086,-648.33,9.899e-05,2]
[348073785,1736293844095,-1209.31,9.899e-05,2]
[348073786,1736293844105,-883.01,9.899e-05,2]
[348073787,1736293844114,-500.0,9.899e-05,2]
[348073788,1736293844125,-501.45,9.9e-05,2]
[348073789,1736293844134,-824.81,9.9e-05,2]
[348073790,1736293844144,-1519.87,9.9e-05,2]
[348073791,1736293844154,-179.10452172,9.921e-05,2]
[348073792,1736293844164,-500.0,9.984e-05,2]
[348073793,1736293844174,-500.0,9.984e-05,2]
[348073794,1736293844183,-673.69,9.984e-05,2]
[348073795,1736293844193,-779.03,9.984e-05,2]
[348073796,1736293844203,-1551.77,9.984e-05,2]
[348073797,1736293844212,-1088.09,9.984e-05,2]
[348073798,1736293844221,-620.746265,9.984e-05,2]
[348073799,1736293844231,-2000.4,9.984e-05,2]
[348073800,1736293844240,-597.759592,9.984e-05,2]
[348073801,1736293844250,-500.0,9.984e-05,2]
[348073802,1736293844259,-500.0,9.984e-05,2]
[348073803,1736293844269,-500.0,9.984e-05,2]
[348073804,1736293844279,-171.79274926,9.984e-05,2]
[348073805,1736293844288,-1484.85,9.984e-05,2]
[348073806,1736293844298,-500.0,9.997e-05,2]
[348073807,1736293844309,-500.0,9.999e-05,2]
[348073808,1736293844318,-227003.21572473,0.0001,2]
[348073809,1736293844659,-9370.34368812,0.0001,2]
[348073810,1736293844670,-303.04274977,0.0001,2]
[348073811,1736293844755,-1891.03060736,0.0001,2]
[348073812,1736293845313,-385.28902785,0.0001,2]
[348073813,1736293845327,-101372.53181578,0.0001,2]
[348073814,1736293845337,-396.51,0.0001,2]
[348073815,1736293845347,-207.74170204,0.0001,2]
[348073816,1736293845357,-3054.42136906,0.0001,2]
[348073817,1736293845367,-1065.15503665,0.0001,2]
[348073818,1736293845377,-1000.0,0.0001,2]
[348073819,1736293845387,-179.10452194,0.0001,2]
[348073820,1736293845400,-179.10452172,0.0001,2]
[348073821,1736293845412,-179.10452172,0.0001,2]
[348073822,1736293845422,-179.10452172,0.0001,2]
[348073823,1736293845431,-179.10452172,0.0001,2]
[348073824,1736293845444,-550.3,0.00010001,2]
[348073825,1736293845454,-545.33,0.00010002,2]
[348073826,1736293845464,-1358.3,0.00010002,2]
[348073827,1736293845477,-179.10452172,0.00010045,2]
[348073828,1736293845487,-316.41817896,0.00010097,2]
[348073829,1736293845496,-500.0,0.00010097,2]
[348073830,1736293845506,-500.0,0.00010097,2]
[348073831,1736293845516,-500.0,0.00010097,2]
[348073832,1736293845526,-500.0,0.00010097,2]
[348073833,1736293845535,-500.0,0.00010097,2]
[348073834,1736293845545,-500.0,0.00010097,2]
[348073835,1736293845554,-500.0,0.00010097,2]
[348073836,1736293845565,-500.0,0.00010097,2]
[348073837,1736293845574,-500.0,0.00010097,2]
[348073838,1736293845584,-500.0,0.00010097,2]
[348073839,1736293845849,-500.0,0.00010097,2]
[348073840,1736293845860,-500.0,0.00010097,2]
[348073841,1736293845871,-500.0,0.00010097,2]
[348073842,1736293845880,-500.0,0.00010097,2]
[348073843,1736293845891,-500.0,0.00010097,2]
[348073844,1736293845901,-500.0,0.00010097,2]
[348073845,1736293845913,-500.0,0.00010097,2]
[348073846,1736293845923,-506.51,0.00010097,2]
[348073847,1736293845933,-500.0,0.00010097,2]
[348073848,1736293845949,-500.0,0.00010097,2]
[348073849,1736293845959,-500.0,0.00010097,2]
[348073850,1736293845969,-500.0,0.00010097,2]
[348073851,1736293845978,-1049.77,0.00010097,2]
[348073852,1736293845988,-500.0,0.00010097,2]
[348073853,1736293845998,-500.0,0.00010097,2]
[348073854,1736293846007,-500.0,0.00010097,2]
[348073855,1736293846016,-500.0,0.00010097,2]
[348073856,1736293846026,-500.0,0.00010097,2]
[348073857,1736293846035,-500.0,0.00010097,2]
[348073858,1736293846045,-500.0,0.00010097,2]
[348073859,1736293846054,-500.0,0.00010097,2]
[348073860,1736293846064,-500.0,0.00010097,2]
[348073861,1736293846074,-500.0,0.00010097,2]
[348073862,1736293846083,-500.0,0.00010097,2]
[348073863,1736293846092,-500.0,0.00010097,2]
[348073864,1736293846102,-500.0,0.00010097,2]
[348073865,1736293846111,-614.3,0.00010097,2]
[348073866,1736293846120,-500.0,0.00010097,2]
[348073867,1736293846130,-753.89,0.00010097,2]
[348073868,1736293846139,-500.0,0.00010097,2]
[348073869,1736293846149,-582.41,0.00010097,2]
[348073870,1736293846159,-500.0,0.00010097,2]
[348073871,1736293846169,-500.0,0.00010097,2]
[348073872,1736293846179,-500.0,0.00010097,2]
[348073873,1736293846188,-500.0,0.00010097,2]
[348073874,1736293846199,-500.0,0.00010097,2]
[348073875,1736293846209,-500.0,0.00010097,2]
[348073876,1736293846218,-769.84,0.00010097,2]